[Event "Titled Tuesday Blitz February 01 A 2022"]
[White "Corrales Jimenez, Fidel"]
[Black "Madaminov, Mukhiddin"]
[WhiteFideId "3506690"]
[BlackFideId "14210703"]
[WhiteElo "2541"]
[BlackElo "1916"]
[Result "1-0"]
[Round "07"]
[TimeControl "180+1"]
[Date "2022.02.01"]
[WhiteClock "0:02:18"]
[BlackClock "0:00:04"]

1. e4 {[%clk 0:03:00]}  e5 {[%clk 0:02:59]} 2. Nf3 {[%clk 0:03:01]}  Nc6 {[%clk 0:03:00]} 3. Bb5 {[%clk 0:03:01]}  a6 {[%clk 0:02:59]} 4. Ba4 {[%clk 0:03:02]}  Nf6 {[%clk 0:03:00]} 5. O-O {[%clk 0:03:03]}  Nxe4 {[%clk 0:03:00]} 6. d4 {[%clk 0:03:03]}  b5 {[%clk 0:03:01]} 7. Bb3 {[%clk 0:03:03]}  d5 {[%clk 0:03:02]} 8. dxe5 {[%clk 0:03:03]}  Be6 {[%clk 0:03:02]} 9. c3 {[%clk 0:03:03]}  Be7 {[%clk 0:03:03]} 10. Bc2 {[%clk 0:02:59]}  O-O {[%clk 0:03:03]} 11. Qd3 {[%clk 0:02:59]}  f5 {[%clk 0:02:53]} 12. exf6 {[%clk 0:02:59]}  Bxf6 {[%clk 0:02:35]} 13. Nbd2 {[%clk 0:02:58]}  Bf5 {[%clk 0:02:30]} 14. Bb3 {[%clk 0:02:58]}  Ne7 {[%clk 0:01:19]} 15. Nxe4 {[%clk 0:02:58]}  Kh8 {[%clk 0:01:20]} 16. Nfg5 {[%clk 0:02:45]}  Bxg5 {[%clk 0:00:50]} 17. Bxg5 {[%clk 0:02:44]}  Bxe4 {[%clk 0:00:50]} 18. Qe3 {[%clk 0:02:41]}  Nf5 {[%clk 0:00:47]} 19. Qd2 {[%clk 0:02:36]}  Qd6 {[%clk 0:00:08]} 20. f3 {[%clk 0:02:34]}  Qb6+ {[%clk 0:00:09]} 21. Kh1 {[%clk 0:02:33]}  Nd6 {[%clk 0:00:08]} 22. Be3 {[%clk 0:02:30]}  d4 {[%clk 0:00:03]} 23. Bxd4 {[%clk 0:02:24]}  c5 {[%clk 0:00:03]} 24. Be5 {[%clk 0:02:20]}  Nf7 {[%clk 0:00:01]} 25. Bxf7 {[%clk 0:02:19]}  Rxf7 {[%clk 0:00:02]} 26. fxe4 {[%clk 0:02:19]}  Re7 {[%clk 0:00:03]} 27. Qf4 {[%clk 0:02:17]}  Rae8 {[%clk 0:00:03]} 28. Qf8+ {[%clk 0:02:17]}  Rxf8 {[%clk 0:00:04]} 29. Rxf8# {[%clk 0:02:18]} 1-0


[Site "https://www.chess.com"]

[Event "Titled Tuesday Blitz February 01 A 2022"]
[White "Demchenko, Anton"]
[Black "Vokhidov, Shamsiddin"]
[WhiteFideId "4160258"]
[BlackFideId "14204223"]
[WhiteElo "2539"]
[BlackElo "2611"]
[Result "1/2-1/2"]
[Round "07"]
[TimeControl "180+1"]
[Date "2022.02.01"]
[WhiteClock "0:00:07"]
[BlackClock "0:00:08"]

1. e4 {[%clk 0:03:00]}  c5 {[%clk 0:03:00]} 2. Nf3 {[%clk 0:03:01]}  d6 {[%clk 0:03:00]} 3. d4 {[%clk 0:03:01]}  cxd4 {[%clk 0:03:01]} 4. Qxd4 {[%clk 0:03:02]}  Nc6 {[%clk 0:03:01]} 5. Qe3 {[%clk 0:03:03]}  g6 {[%clk 0:03:01]} 6. h3 {[%clk 0:03:03]}  Bg7 {[%clk 0:03:02]} 7. Nc3 {[%clk 0:03:02]}  Nf6 {[%clk 0:03:02]} 8. Bc4 {[%clk 0:03:03]}  O-O {[%clk 0:03:02]} 9. O-O {[%clk 0:03:03]}  b6 {[%clk 0:02:59]} 10. Rd1 {[%clk 0:03:02]}  Bb7 {[%clk 0:02:59]} 11. Qf4 {[%clk 0:03:01]}  Rc8 {[%clk 0:02:56]} 12. Bb3 {[%clk 0:02:59]}  Na5 {[%clk 0:02:34]} 13. Qh4 {[%clk 0:02:49]}  Rc5 {[%clk 0:02:32]} 14. Bg5 {[%clk 0:02:18]}  Qa8 {[%clk 0:02:22]} 15. Re1 {[%clk 0:02:02]}  Re8 {[%clk 0:02:12]} 16. Rad1 {[%clk 0:01:45]}  Nxb3 {[%clk 0:02:09]} 17. cxb3 {[%clk 0:01:32]}  b5 {[%clk 0:01:28]} 18. a3 {[%clk 0:01:00]}  a5 {[%clk 0:01:27]} 19. Nd2 {[%clk 0:00:41]}  b4 {[%clk 0:01:15]} 20. axb4 {[%clk 0:00:41]}  axb4 {[%clk 0:01:16]} 21. Na4 {[%clk 0:00:41]}  Rc2 {[%clk 0:01:15]} 22. Nb6 {[%clk 0:00:35]}  Qa6 {[%clk 0:00:59]} 23. Nbc4 {[%clk 0:00:35]}  d5 {[%clk 0:00:41]} 24. exd5 {[%clk 0:00:32]}  Bxd5 {[%clk 0:00:42]} 25. Bh6 {[%clk 0:00:28]}  Qc6 {[%clk 0:00:31]} 26. Bxg7 {[%clk 0:00:25]}  Kxg7 {[%clk 0:00:32]} 27. Ne3 {[%clk 0:00:22]}  Rxb2 {[%clk 0:00:27]} 28. Qxb4 {[%clk 0:00:23]}  Be6 {[%clk 0:00:23]} 29. Qd4 {[%clk 0:00:20]}  Ra2 {[%clk 0:00:20]} 30. Ndc4 {[%clk 0:00:16]}  Qc7 {[%clk 0:00:17]} 31. Ra1 {[%clk 0:00:14]}  Rxa1 {[%clk 0:00:16]} 32. Rxa1 {[%clk 0:00:14]}  Rd8 {[%clk 0:00:17]} 33. Qb2 {[%clk 0:00:13]}  Rb8 {[%clk 0:00:16]} 34. Qc3 {[%clk 0:00:12]}  Rb5 {[%clk 0:00:15]} 35. Rd1 {[%clk 0:00:03]}  Qb8 {[%clk 0:00:15]} 36. Rd3 {[%clk 0:00:04]}  h5 {[%clk 0:00:14]} 37. f3 {[%clk 0:00:02]}  h4 {[%clk 0:00:14]} 38. Qd4 {[%clk 0:00:02]}  Rxb3 {[%clk 0:00:12]} 39. Rxb3 {[%clk 0:00:02]}  Qxb3 {[%clk 0:00:13]} 40. Qxh4 {[%clk 0:00:03]}  Qd3 {[%clk 0:00:11]} 41. Qf4 {[%clk 0:00:02]}  Nh5 {[%clk 0:00:08]} 42. Qe4 {[%clk 0:00:01]}  Qc3 {[%clk 0:00:07]} 43. Qe5+ {[%clk 0:00:01]}  Qxe5 {[%clk 0:00:07]} 44. Nxe5 {[%clk 0:00:02]}  Nf4 {[%clk 0:00:06]} 45. Kf2 {[%clk 0:00:02]}  f6 {[%clk 0:00:06]} 46. N5c4 {[%clk 0:00:03]}  Bd5 {[%clk 0:00:05]} 47. Nb2 {[%clk 0:00:03]}  Bc6 {[%clk 0:00:05]} 48. h4 {[%clk 0:00:02]}  e5 {[%clk 0:00:04]} 49. g3 {[%clk 0:00:03]}  Ne6 {[%clk 0:00:05]} 50. Nd3 {[%clk 0:00:02]}  Nd4 {[%clk 0:00:06]} 51. f4 {[%clk 0:00:02]}  exf4 {[%clk 0:00:03]} 52. Nxf4 {[%clk 0:00:03]}  Kf7 {[%clk 0:00:04]} 53. Nd3 {[%clk 0:00:03]}  Ne6 {[%clk 0:00:04]} 54. Nf4 {[%clk 0:00:03]}  Nxf4 {[%clk 0:00:04]} 55. gxf4 {[%clk 0:00:04]}  Be4 {[%clk 0:00:04]} 56. Kg3 {[%clk 0:00:04]}  Kg7 {[%clk 0:00:05]} 57. Nd1 {[%clk 0:00:04]}  Kh6 {[%clk 0:00:05]} 58. Nf2 {[%clk 0:00:05]}  Bf5 {[%clk 0:00:06]} 59. Ng4+ {[%clk 0:00:04]}  Bxg4 {[%clk 0:00:06]} 60. Kxg4 {[%clk 0:00:05]}  f5+ {[%clk 0:00:06]} 61. Kg3 {[%clk 0:00:05]}  Kh5 {[%clk 0:00:07]} 62. Kh3 {[%clk 0:00:05]}  Kh6 {[%clk 0:00:07]} 63. Kg3 {[%clk 0:00:06]}  Kh5 {[%clk 0:00:08]} 64. Kh3 {[%clk 0:00:06]}  Kh6 {[%clk 0:00:08]} 65. Kg3 {[%clk 0:00:07]} 1/2-1/2


[Site "https://www.chess.com"]

[Event "Titled Tuesday Blitz February 01 A 2022"]
[White "Grischuk, Alexander"]
[Black "Hayrapetyan, Hovik"]
[WhiteFideId "4126025"]
[BlackFideId "13302639"]
[WhiteElo "2762"]
[BlackElo "2352"]
[Result "1-0"]
[Round "07"]
[TimeControl "180+1"]
[Date "2022.02.01"]
[WhiteClock "0:00:33"]
[BlackClock "0:00:04"]

1. e4 {[%clk 0:03:00]}  g6 {[%clk 0:02:59]} 2. d4 {[%clk 0:02:59]}  Bg7 {[%clk 0:03:00]} 3. Nf3 {[%clk 0:02:58]}  d6 {[%clk 0:03:00]} 4. Bd3 {[%clk 0:02:59]}  Nf6 {[%clk 0:03:00]} 5. O-O {[%clk 0:02:59]}  O-O {[%clk 0:03:00]} 6. Re1 {[%clk 0:02:59]}  c5 {[%clk 0:03:00]} 7. d5 {[%clk 0:02:45]}  Bg4 {[%clk 0:02:57]} 8. h3 {[%clk 0:02:44]}  Bxf3 {[%clk 0:02:57]} 9. Qxf3 {[%clk 0:02:45]}  Nfd7 {[%clk 0:02:57]} 10. Qd1 {[%clk 0:02:44]}  Na6 {[%clk 0:02:57]} 11. a4 {[%clk 0:02:33]}  Nc7 {[%clk 0:02:52]} 12. Nc3 {[%clk 0:02:19]}  a6 {[%clk 0:02:37]} 13. a5 {[%clk 0:02:17]}  Ne5 {[%clk 0:02:34]} 14. Bf1 {[%clk 0:02:17]}  Nb5 {[%clk 0:02:33]} 15. Bd2 {[%clk 0:01:57]}  Nd4 {[%clk 0:02:19]} 16. Na4 {[%clk 0:01:54]}  Nd7 {[%clk 0:02:13]} 17. Rb1 {[%clk 0:01:35]}  e5 {[%clk 0:01:51]} 18. b4 {[%clk 0:01:26]}  cxb4 {[%clk 0:01:26]} 19. Bxb4 {[%clk 0:01:21]}  Qc7 {[%clk 0:01:26]} 20. c3 {[%clk 0:01:20]}  Nb5 {[%clk 0:01:26]} 21. Bd3 {[%clk 0:01:18]}  Rfd8 {[%clk 0:01:05]} 22. Qe2 {[%clk 0:01:17]}  Na7 {[%clk 0:00:59]} 23. Rb3 {[%clk 0:01:15]}  Bf8 {[%clk 0:00:59]} 24. Reb1 {[%clk 0:01:15]}  Rab8 {[%clk 0:00:55]} 25. c4 {[%clk 0:01:12]}  Nc8 {[%clk 0:00:46]} 26. Bd2 {[%clk 0:01:12]}  Nc5 {[%clk 0:00:43]} 27. Nxc5 {[%clk 0:01:12]}  dxc5 {[%clk 0:00:43]} 28. h4 {[%clk 0:01:13]}  Nd6 {[%clk 0:00:43]} 29. h5 {[%clk 0:01:13]}  Rd7 {[%clk 0:00:32]} 30. Qg4 {[%clk 0:01:11]}  Qd8 {[%clk 0:00:28]} 31. g3 {[%clk 0:01:09]}  Rc7 {[%clk 0:00:25]} 32. Rb6 {[%clk 0:01:04]}  Nc8 {[%clk 0:00:20]} 33. Rxa6 {[%clk 0:00:58]}  Bd6 {[%clk 0:00:14]} 34. Bg5 {[%clk 0:00:47]}  Qd7 {[%clk 0:00:10]} 35. Qh4 {[%clk 0:00:40]}  bxa6 {[%clk 0:00:03]} 36. Rxb8 {[%clk 0:00:40]}  Rb7 {[%clk 0:00:04]} 37. Rxb7 {[%clk 0:00:35]}  Qxb7 {[%clk 0:00:04]} 38. hxg6 {[%clk 0:00:34]}  fxg6 {[%clk 0:00:04]} 39. Qg4 {[%clk 0:00:33]} 1-0


[Site "https://www.chess.com"]

[Event "Titled Tuesday Blitz February 01 A 2022"]
[White "Kosteniuk, Alexandra"]
[Black "Svane, Frederik"]
[WhiteFideId "4128125"]
[BlackFideId "12923044"]
[WhiteElo "2469"]
[BlackElo "2459"]
[Result "1-0"]
[Round "07"]
[TimeControl "180+1"]
[Date "2022.02.01"]
[WhiteClock "0:01:34"]
[BlackClock "0:00:46"]

1. c4 {[%clk 0:03:00]}  Nf6 {[%clk 0:02:59]} 2. Nc3 {[%clk 0:03:00]}  e6 {[%clk 0:03:00]} 3. e4 {[%clk 0:02:59]}  d5 {[%clk 0:03:00]} 4. e5 {[%clk 0:02:59]}  d4 {[%clk 0:03:00]} 5. exf6 {[%clk 0:03:00]}  dxc3 {[%clk 0:03:00]} 6. bxc3 {[%clk 0:03:00]}  Qxf6 {[%clk 0:02:59]} 7. Bd3 {[%clk 0:02:58]}  Bd6 {[%clk 0:02:54]} 8. Ne2 {[%clk 0:02:54]}  O-O {[%clk 0:02:53]} 9. Qc2 {[%clk 0:02:51]}  h6 {[%clk 0:02:52]} 10. O-O {[%clk 0:02:48]}  Nd7 {[%clk 0:02:46]} 11. Ng3 {[%clk 0:02:45]}  Qe7 {[%clk 0:02:37]} 12. Bh7+ {[%clk 0:02:42]}  Kh8 {[%clk 0:02:37]} 13. d4 {[%clk 0:02:42]}  Nf6 {[%clk 0:02:34]} 14. Bd3 {[%clk 0:02:40]}  b6 {[%clk 0:02:35]} 15. Re1 {[%clk 0:02:37]}  Bb7 {[%clk 0:02:27]} 16. Nf5 {[%clk 0:02:34]}  Qd7 {[%clk 0:02:15]} 17. Nxg7 {[%clk 0:02:34]}  Kxg7 {[%clk 0:02:13]} 18. Bxh6+ {[%clk 0:02:32]}  Kxh6 {[%clk 0:01:59]} 19. Qd2+ {[%clk 0:02:32]}  Kh5 {[%clk 0:02:00]} 20. Re3 {[%clk 0:02:24]}  Bf4 {[%clk 0:01:38]} 21. Rh3+ {[%clk 0:02:04]}  Kg5 {[%clk 0:01:37]} 22. Rg3+ {[%clk 0:02:02]}  Ng4 {[%clk 0:01:36]} 23. h4+ {[%clk 0:01:59]}  Kh5 {[%clk 0:01:35]} 24. Qxf4 {[%clk 0:01:58]}  Rg8 {[%clk 0:01:35]} 25. f3 {[%clk 0:01:43]}  f5 {[%clk 0:01:16]} 26. fxg4+ {[%clk 0:01:39]}  fxg4 {[%clk 0:01:16]} 27. Re1 {[%clk 0:01:38]}  Raf8 {[%clk 0:00:46]} 28. Re5+ {[%clk 0:01:38]}  Kxh4 {[%clk 0:00:46]} 29. Qh6+ {[%clk 0:01:34]}  Kxg3 {[%clk 0:00:46]} 30. Qh2# {[%clk 0:01:34]} 1-0


[Site "https://www.chess.com"]

[Event "Titled Tuesday Blitz February 01 A 2022"]
[White "Nazari, Arad"]
[Black "Deac, Bogdan-Daniel"]
[WhiteFideId "12577324"]
[BlackFideId "1226380"]
[WhiteElo "2120"]
[BlackElo "2646"]
[Result "0-1"]
[Round "07"]
[TimeControl "180+1"]
[Date "2022.02.01"]
[WhiteClock "0:00:02"]
[BlackClock "0:00:06"]

1. e4 {[%clk 0:03:00]}  c5 {[%clk 0:02:58]} 2. Nf3 {[%clk 0:03:00]}  Nc6 {[%clk 0:02:58]} 3. Bb5 {[%clk 0:03:00]}  g6 {[%clk 0:02:57]} 4. O-O {[%clk 0:03:00]}  Bg7 {[%clk 0:02:58]} 5. Bxc6 {[%clk 0:02:58]}  dxc6 {[%clk 0:02:55]} 6. d3 {[%clk 0:02:56]}  e5 {[%clk 0:02:55]} 7. Be3 {[%clk 0:02:56]}  b6 {[%clk 0:02:55]} 8. a3 {[%clk 0:02:57]}  a5 {[%clk 0:02:50]} 9. Qd2 {[%clk 0:02:53]}  Bg4 {[%clk 0:02:42]} 10. Ne1 {[%clk 0:02:45]}  Nf6 {[%clk 0:02:36]} 11. h3 {[%clk 0:02:40]}  Be6 {[%clk 0:02:34]} 12. Bh6 {[%clk 0:02:40]}  O-O {[%clk 0:02:27]} 13. Bxg7 {[%clk 0:02:39]}  Kxg7 {[%clk 0:02:28]} 14. Nf3 {[%clk 0:02:39]}  Qd6 {[%clk 0:02:19]} 15. Qc3 {[%clk 0:02:14]}  Nd7 {[%clk 0:02:17]} 16. Nbd2 {[%clk 0:02:15]}  f6 {[%clk 0:02:13]} 17. Nc4 {[%clk 0:02:13]}  Qe7 {[%clk 0:02:06]} 18. Ne3 {[%clk 0:02:11]}  a4 {[%clk 0:02:05]} 19. Rae1 {[%clk 0:01:56]}  b5 {[%clk 0:02:03]} 20. Qd2 {[%clk 0:01:57]}  Qd6 {[%clk 0:01:53]} 21. Ng4 {[%clk 0:01:45]}  Rad8 {[%clk 0:01:32]} 22. Qh6+ {[%clk 0:01:33]}  Kg8 {[%clk 0:01:31]} 23. Nh4 {[%clk 0:01:29]}  Qe7 {[%clk 0:01:27]} 24. f4 {[%clk 0:01:14]}  Bxg4 {[%clk 0:01:12]} 25. hxg4 {[%clk 0:01:13]}  exf4 {[%clk 0:01:13]} 26. Rxf4 {[%clk 0:01:11]}  Ne5 {[%clk 0:00:52]} 27. Nf3 {[%clk 0:01:11]}  c4 {[%clk 0:00:53]} 28. Rf1 {[%clk 0:00:51]}  Nf7 {[%clk 0:00:31]} 29. Qh2 {[%clk 0:00:37]}  cxd3 {[%clk 0:00:30]} 30. cxd3 {[%clk 0:00:38]}  Rxd3 {[%clk 0:00:31]} 31. Ne1 {[%clk 0:00:20]}  Rd6 {[%clk 0:00:28]} 32. Qg3 {[%clk 0:00:19]}  Ng5 {[%clk 0:00:26]} 33. Qe3 {[%clk 0:00:15]}  Re6 {[%clk 0:00:24]} 34. Nf3 {[%clk 0:00:15]}  Rxe4 {[%clk 0:00:18]} 35. Rxe4 {[%clk 0:00:15]}  Qxe4 {[%clk 0:00:19]} 36. Qxe4 {[%clk 0:00:14]}  Nxe4 {[%clk 0:00:19]} 37. Rc1 {[%clk 0:00:15]}  c5 {[%clk 0:00:19]} 38. Re1 {[%clk 0:00:14]}  Nd6 {[%clk 0:00:14]} 39. Nd2 {[%clk 0:00:12]}  Kf7 {[%clk 0:00:13]} 40. Rc1 {[%clk 0:00:10]}  Rc8 {[%clk 0:00:12]} 41. Nb1 {[%clk 0:00:08]}  b4 {[%clk 0:00:09]} 42. Nd2 {[%clk 0:00:06]}  Ke6 {[%clk 0:00:07]} 43. Kf2 {[%clk 0:00:05]}  bxa3 {[%clk 0:00:07]} 44. bxa3 {[%clk 0:00:05]}  c4 {[%clk 0:00:07]} 45. Nb1 {[%clk 0:00:05]}  Nb5 {[%clk 0:00:07]} 46. Re1+ {[%clk 0:00:05]}  Kd6 {[%clk 0:00:07]} 47. Rd1+ {[%clk 0:00:05]}  Kc5 {[%clk 0:00:07]} 48. Nd2 {[%clk 0:00:04]}  c3 {[%clk 0:00:06]} 49. Ne4+ {[%clk 0:00:04]}  Kb6 {[%clk 0:00:06]} 50. Rb1 {[%clk 0:00:04]}  c2 {[%clk 0:00:06]} 51. Rc1 {[%clk 0:00:04]}  Nd4 {[%clk 0:00:06]} 52. Nd6 {[%clk 0:00:02]}  Rc6 {[%clk 0:00:06]} 0-1


[Site "https://www.chess.com"]

[Event "Titled Tuesday Blitz February 01 A 2022"]
[White "Pakleza, Zbigniew"]
[Black "Khumalo, Keith"]
[WhiteFideId "1119290"]
[BlackFideId "14319470"]
[WhiteElo "2467"]
[BlackElo "1992"]
[Result "1-0"]
[Round "07"]
[TimeControl "180+1"]
[Date "2022.02.01"]
[WhiteClock "0:00:41"]
[BlackClock "0:02:07"]

1. d4 {[%clk 0:03:00]}  Nf6 {[%clk 0:02:59]} 2. Nf3 {[%clk 0:03:01]}  d5 {[%clk 0:02:58]} 3. Bf4 {[%clk 0:03:01]}  g6 {[%clk 0:02:58]} 4. e3 {[%clk 0:03:01]}  Bg7 {[%clk 0:02:59]} 5. Nbd2 {[%clk 0:03:00]}  O-O {[%clk 0:02:59]} 6. Be2 {[%clk 0:02:59]}  c5 {[%clk 0:03:00]} 7. c3 {[%clk 0:03:00]}  Nc6 {[%clk 0:03:00]} 8. O-O {[%clk 0:03:00]}  Nd7 {[%clk 0:03:00]} 9. Bg3 {[%clk 0:02:53]}  e5 {[%clk 0:03:01]} 10. Nb3 {[%clk 0:02:51]}  e4 {[%clk 0:02:54]} 11. Ne1 {[%clk 0:02:44]}  cxd4 {[%clk 0:02:49]} 12. Nxd4 {[%clk 0:02:36]}  Nde5 {[%clk 0:02:44]} 13. Nec2 {[%clk 0:02:31]}  h5 {[%clk 0:02:41]} 14. h3 {[%clk 0:02:27]}  Qe7 {[%clk 0:02:37]} 15. Rc1 {[%clk 0:02:19]}  Rd8 {[%clk 0:02:34]} 16. a3 {[%clk 0:02:09]}  f5 {[%clk 0:02:33]} 17. Nb4 {[%clk 0:02:08]}  g5 {[%clk 0:02:26]} 18. Nbxc6 {[%clk 0:01:50]}  bxc6 {[%clk 0:02:25]} 19. Bxe5 {[%clk 0:01:46]}  Qxe5 {[%clk 0:02:20]} 20. Nxc6 {[%clk 0:01:45]}  Qd6 {[%clk 0:02:18]} 21. Nxd8 {[%clk 0:01:42]}  Qxd8 {[%clk 0:02:19]} 22. Bxh5 {[%clk 0:01:36]}  g4 {[%clk 0:02:19]} 23. hxg4 {[%clk 0:01:30]}  f4 {[%clk 0:02:17]} 24. exf4 {[%clk 0:01:25]}  Bb7 {[%clk 0:02:17]} 25. g5 {[%clk 0:01:17]}  Qd6 {[%clk 0:02:13]} 26. g3 {[%clk 0:01:13]}  Qb6 {[%clk 0:02:13]} 27. b4 {[%clk 0:01:04]}  e3 {[%clk 0:02:11]} 28. Bf3 {[%clk 0:01:03]}  exf2+ {[%clk 0:02:08]} 29. Kg2 {[%clk 0:00:59]}  d4 {[%clk 0:02:07]} 30. cxd4 {[%clk 0:00:47]}  Rd8 {[%clk 0:02:06]} 31. Bxb7 {[%clk 0:00:44]}  Qxb7+ {[%clk 0:02:07]} 32. Qf3 {[%clk 0:00:44]}  Qxf3+ {[%clk 0:02:06]} 33. Kxf3 {[%clk 0:00:44]}  Rxd4 {[%clk 0:02:07]} 34. Rxf2 {[%clk 0:00:40]}  Rd3+ {[%clk 0:02:07]} 35. Kg4 {[%clk 0:00:41]}  Rxa3 {[%clk 0:02:07]} 36. Rc8+ {[%clk 0:00:41]} 1-0


[Site "https://www.chess.com"]

[Event "Titled Tuesday Blitz February 01 A 2022"]
[White "Shimelkov, Vasiliy"]
[Black "Indjic, Aleksandar"]
[WhiteFideId "13701630"]
[BlackFideId "911925"]
[WhiteElo "2073"]
[BlackElo "2616"]
[Result "0-1"]
[Round "07"]
[TimeControl "180+1"]
[Date "2022.02.01"]
[WhiteClock "0:00:17"]
[BlackClock "0:01:56"]

1. d4 {[%clk 0:02:59]}  Nf6 {[%clk 0:02:59]} 2. c4 {[%clk 0:02:56]}  c5 {[%clk 0:02:59]} 3. d5 {[%clk 0:02:55]}  e6 {[%clk 0:02:59]} 4. Nc3 {[%clk 0:02:52]}  exd5 {[%clk 0:03:00]} 5. cxd5 {[%clk 0:02:51]}  d6 {[%clk 0:03:00]} 6. h3 {[%clk 0:02:47]}  g6 {[%clk 0:03:00]} 7. Nf3 {[%clk 0:02:46]}  a6 {[%clk 0:02:58]} 8. a4 {[%clk 0:02:45]}  Qe7 {[%clk 0:02:58]} 9. Bf4 {[%clk 0:02:37]}  Nbd7 {[%clk 0:02:55]} 10. Nd2 {[%clk 0:02:28]}  Ne5 {[%clk 0:02:50]} 11. e4 {[%clk 0:02:25]}  Nfd7 {[%clk 0:02:46]} 12. Be2 {[%clk 0:02:24]}  Bg7 {[%clk 0:02:43]} 13. O-O {[%clk 0:02:22]}  g5 {[%clk 0:02:43]} 14. Bh2 {[%clk 0:02:14]}  Rb8 {[%clk 0:02:43]} 15. Re1 {[%clk 0:01:58]}  Nf8 {[%clk 0:02:37]} 16. Nf1 {[%clk 0:01:57]}  Nfg6 {[%clk 0:02:36]} 17. Ne3 {[%clk 0:01:54]}  Nf4 {[%clk 0:02:35]} 18. Bg4 {[%clk 0:01:49]}  Nxg4 {[%clk 0:02:31]} 19. hxg4 {[%clk 0:01:45]}  Be5 {[%clk 0:02:32]} 20. Nf5 {[%clk 0:01:43]}  Qf6 {[%clk 0:02:31]} 21. Bxf4 {[%clk 0:01:39]}  gxf4 {[%clk 0:02:30]} 22. Qf3 {[%clk 0:01:32]}  h5 {[%clk 0:02:29]} 23. gxh5 {[%clk 0:01:26]}  Bxf5 {[%clk 0:02:27]} 24. exf5 {[%clk 0:01:26]}  Qxf5 {[%clk 0:02:27]} 25. Ne4 {[%clk 0:01:22]}  Kd7 {[%clk 0:02:26]} 26. Ng3 {[%clk 0:00:50]}  Qg5 {[%clk 0:02:25]} 27. Ne4 {[%clk 0:00:46]}  Qxh5 {[%clk 0:02:24]} 28. Qxh5 {[%clk 0:00:45]}  Rxh5 {[%clk 0:02:25]} 29. Rab1 {[%clk 0:00:43]}  Bd4 {[%clk 0:02:20]} 30. Kf1 {[%clk 0:00:43]}  Rxd5 {[%clk 0:02:19]} 31. Ke2 {[%clk 0:00:38]}  f5 {[%clk 0:02:12]} 32. Ng5 {[%clk 0:00:34]}  Rg8 {[%clk 0:02:10]} 33. Nh3 {[%clk 0:00:27]}  Be5 {[%clk 0:02:05]} 34. Kf1 {[%clk 0:00:20]}  Rd3 {[%clk 0:02:00]} 35. Rbd1 {[%clk 0:00:20]}  Rxd1 {[%clk 0:01:58]} 36. Rxd1 {[%clk 0:00:20]}  Kc6 {[%clk 0:01:58]} 37. b3 {[%clk 0:00:20]}  b5 {[%clk 0:01:58]} 38. f3 {[%clk 0:00:19]}  c4 {[%clk 0:01:58]} 39. bxc4 {[%clk 0:00:19]}  bxc4 {[%clk 0:01:59]} 40. Nf2 {[%clk 0:00:20]}  Rb8 {[%clk 0:01:57]} 41. Rc1 {[%clk 0:00:18]}  Kd5 {[%clk 0:01:57]} 42. Nd1 {[%clk 0:00:18]}  Rb3 {[%clk 0:01:56]} 43. Rc2 {[%clk 0:00:17]}  Kc5 {[%clk 0:01:56]} 44. Ke2 {[%clk 0:00:17]}  d5 {[%clk 0:01:56]} 0-1


[Site "https://www.chess.com"]